[Event "Early-Titled-Tuesday-Blitz-January-16-2024"]
[Site "Chess.com"]
[Date "2024.01.16"]
[Round "10"]
[White "Massakru"]
[Black "shirovin"]
[Result "1-0"]
[WhiteElo "2316"]
[BlackElo "1995"]
[TimeControl "180+1"]
[EndTime "9:58:26 PST"]
[Termination "Massakru won on time"]

1. e4 {[%clk 0:03:00]} 1... d5 {[%clk 0:02:58]} 2. exd5 {[%clk 0:02:59.7]} 2...
Nf6 {[%clk 0:02:58.1]} 3. Bb5+ {[%clk 0:02:58.8]} 3... c6 {[%clk 0:02:55.5]} 4.
dxc6 {[%clk 0:02:58.7]} 4... bxc6 {[%clk 0:02:55.3]} 5. Bc4 {[%clk 0:02:57.8]}
5... Bg4 {[%clk 0:02:48.5]} 6. Nf3 {[%clk 0:02:55.8]} 6... e6 {[%clk 0:02:47.7]}
7. O-O {[%clk 0:02:51.3]} 7... Be7 {[%clk 0:02:35.7]} 8. d3 {[%clk 0:02:45.8]}
8... O-O {[%clk 0:02:34.9]} 9. Nc3 {[%clk 0:02:44.2]} 9... Nbd7 {[%clk 0:02:35]}
10. Re1 {[%clk 0:02:40.5]} 10... Qc7 {[%clk 0:02:33.5]} 11. h3 {[%clk
0:02:40.3]} 11... Bh5 {[%clk 0:02:32.5]} 12. g4 {[%clk 0:02:36.9]} 12... Bg6
{[%clk 0:02:32]} 13. Bg5 {[%clk 0:02:19.4]} 13... Rfe8 {[%clk 0:02:08.6]} 14.
Qd2 {[%clk 0:02:18.2]} 14... Nb6 {[%clk 0:02:04.6]} 15. Bb3 {[%clk 0:02:17.1]}
15... Rad8 {[%clk 0:01:59.6]} 16. Bh4 {[%clk 0:02:16.7]} 16... Nfd5 {[%clk
0:01:55.5]} 17. Bg3 {[%clk 0:02:13.1]} 17... Bd6 {[%clk 0:01:46.6]} 18. Nxd5
{[%clk 0:02:12.3]} 18... cxd5 {[%clk 0:01:37.1]} 19. Kg2 {[%clk 0:02:05.3]}
19... Bxg3 {[%clk 0:01:36.1]} 20. fxg3 {[%clk 0:02:05.4]} 20... e5 {[%clk
0:01:28]} 21. Nh4 {[%clk 0:01:54.2]} 21... e4 {[%clk 0:01:24.5]} 22. Nxg6 {[%clk
0:01:54.1]} 22... hxg6 {[%clk 0:01:22.8]} 23. Qf4 {[%clk 0:01:41.4]} 23... Qxf4
{[%clk 0:01:09.1]} 24. gxf4 {[%clk 0:01:42.3]} 24... a5 {[%clk 0:01:04.8]} 25.
a4 {[%clk 0:01:38.9]} 25... f5 {[%clk 0:00:59.4]} 26. Rad1 {[%clk 0:01:33.9]}
26... Kf8 {[%clk 0:00:58.3]} 27. Kf2 {[%clk 0:01:32.6]} 27... d4 {[%clk
0:00:55.1]} 28. gxf5 {[%clk 0:01:26.9]} 28... e3+ {[%clk 0:00:53.8]} 29. Ke2
{[%clk 0:01:26.6]} 29... gxf5 {[%clk 0:00:53.4]} 30. Rg1 {[%clk 0:01:26.8]}
30... Rd6 {[%clk 0:00:51.9]} 31. Rg5 {[%clk 0:01:26.1]} 31... Rf6 {[%clk
0:00:45.1]} 32. Rdg1 {[%clk 0:01:24.6]} 32... Re7 {[%clk 0:00:43.2]} 33. Rh5
{[%clk 0:01:21.6]} 33... Ke8 {[%clk 0:00:38.2]} 34. Rgg5 {[%clk 0:01:15.7]}
34... Rh6 {[%clk 0:00:28.2]} 35. Rxf5 {[%clk 0:01:09.9]} 35... Rxh5 {[%clk
0:00:24.2]} 36. Rxh5 {[%clk 0:01:10.8]} 36... Nd7 {[%clk 0:00:20.9]} 37. Rh8+
{[%clk 0:01:07.8]} 37... Nf8 {[%clk 0:00:19.4]} 38. Bd5 {[%clk 0:01:04.2]} 38...
Rc7 {[%clk 0:00:17.6]} 39. c4 {[%clk 0:01:00.8]} 39... dxc3 {[%clk 0:00:16.3]}
40. bxc3 {[%clk 0:01:00.7]} 40... Rxc3 {[%clk 0:00:15.7]} 41. Kxe3 {[%clk
0:01:00.8]} 41... Rc5 {[%clk 0:00:15.7]} 42. Kd4 {[%clk 0:01:00.2]} 42... Rc1
{[%clk 0:00:14.9]} 43. h4 {[%clk 0:00:59.6]} 43... Rf1 {[%clk 0:00:13.6]} 44.
Ke5 {[%clk 0:00:58.2]} 44... Re1+ {[%clk 0:00:13.1]} 45. Be4 {[%clk 0:00:58.4]}
45... Ra1 {[%clk 0:00:11.4]} 46. h5 {[%clk 0:00:56.7]} 46... Ke7 {[%clk
0:00:11.7]} 47. Rg8 {[%clk 0:00:51.8]} 47... Nd7+ {[%clk 0:00:11.5]} 48. Kf5
{[%clk 0:00:49.8]} 48... Kf7 {[%clk 0:00:10]} 49. Bd5+ {[%clk 0:00:49.1]} 49...
Ke7 {[%clk 0:00:10]} 50. Rxg7+ {[%clk 0:00:49.3]} 50... Kd6 {[%clk 0:00:10.3]}
51. Bc4 {[%clk 0:00:46.6]} 51... Nc5 {[%clk 0:00:09.6]} 52. h6 {[%clk
0:00:45.1]} 52... Rh1 {[%clk 0:00:07.1]} 53. h7 {[%clk 0:00:44]} 53... Nd7
{[%clk 0:00:06.4]} 54. Rg6+ {[%clk 0:00:30.8]} 54... Ke7 {[%clk 0:00:04.9]} 55.
Bg8 {[%clk 0:00:30.9]} 55... Nf8 {[%clk 0:00:04]} 56. Rg7+ {[%clk 0:00:30.3]}
56... Ke8 {[%clk 0:00:03.4]} 57. Ra7 {[%clk 0:00:29.4]} 1-0

[Event "Early-Titled-Tuesday-Blitz-January-16-2024"]
[Site "Chess.com"]
[Date "2024.01.16"]
[Round "10"]
[White "sergeikim"]
[Black "elpatodice"]
[Result "1-0"]
[WhiteElo "2599"]
[BlackElo "2407"]
[TimeControl "180+1"]
[EndTime "9:58:28 PST"]
[Termination "sergeikim won by checkmate"]

1. d4 {[%clk 0:02:56.2]} 1... Nf6 {[%clk 0:02:59.7]} 2. c4 {[%clk 0:02:56.2]}
2... e6 {[%clk 0:03:00]} 3. Nc3 {[%clk 0:02:56.3]} 3... c5 {[%clk 0:02:58.6]} 4.
d5 {[%clk 0:02:55.9]} 4... exd5 {[%clk 0:02:59.2]} 5. cxd5 {[%clk 0:02:56.1]}
5... d6 {[%clk 0:03:00]} 6. e4 {[%clk 0:02:56.3]} 6... g6 {[%clk 0:03:00.4]} 7.
Nge2 {[%clk 0:02:56.4]} 7... Bg7 {[%clk 0:02:59]} 8. Ng3 {[%clk 0:02:56.2]} 8...
O-O {[%clk 0:02:58.1]} 9. Be2 {[%clk 0:02:56.4]} 9... h5 {[%clk 0:02:57.9]} 10.
Bg5 {[%clk 0:02:55.5]} 10... Nbd7 {[%clk 0:02:51.8]} 11. Qd2 {[%clk 0:02:54.3]}
11... a6 {[%clk 0:02:51.9]} 12. a4 {[%clk 0:02:53.3]} 12... Rb8 {[%clk
0:02:51.5]} 13. O-O {[%clk 0:02:52.7]} 13... Qa5 {[%clk 0:02:48.2]} 14. f4
{[%clk 0:02:51.7]} 14... Qb4 {[%clk 0:02:47.8]} 15. Kh1 {[%clk 0:02:50.8]} 15...
Ne8 {[%clk 0:02:45.2]} 16. f5 {[%clk 0:02:35.1]} 16... Ne5 {[%clk 0:02:40]} 17.
Be7 {[%clk 0:02:21.4]} 17... h4 {[%clk 0:02:33.6]} 18. Bxh4 {[%clk 0:02:19.7]}
18... f6 {[%clk 0:02:19.5]} 19. a5 {[%clk 0:02:04]} 19... c4 {[%clk 0:02:11.6]}
20. Ra4 {[%clk 0:02:00.6]} 20... Qc5 {[%clk 0:02:11.4]} 21. fxg6 {[%clk
0:01:56.9]} 21... Nxg6 {[%clk 0:02:11.1]} 22. Rxc4 {[%clk 0:01:49.4]} 22... Qxa5
{[%clk 0:02:11]} 23. Rxc8 {[%clk 0:01:46.4]} 23... Rxc8 {[%clk 0:02:07.5]} 24.
Nf5 {[%clk 0:01:46.8]} 24... b5 {[%clk 0:01:51.4]} 25. Bh5 {[%clk 0:01:40.8]}
25... Nxh4 {[%clk 0:01:49.2]} 26. Nxh4 {[%clk 0:01:28.5]} 26... b4 {[%clk
0:01:47.9]} 27. Nd1 {[%clk 0:01:26.6]} 27... Qb5 {[%clk 0:01:46]} 28. Be2 {[%clk
0:01:17.9]} 28... Qc5 {[%clk 0:01:44.7]} 29. Nf5 {[%clk 0:01:17.1]} 29... a5
{[%clk 0:01:42.4]} 30. Qf4 {[%clk 0:01:06.3]} 30... Rf7 {[%clk 0:01:36.7]} 31.
Bh5 {[%clk 0:01:02.4]} 31... Ra7 {[%clk 0:01:33.5]} 32. Nde3 {[%clk 0:00:57]}
32... a4 {[%clk 0:01:28.9]} 33. Bg6 {[%clk 0:00:56.4]} 33... a3 {[%clk
0:01:28.1]} 34. bxa3 {[%clk 0:00:49.3]} 34... bxa3 {[%clk 0:01:28.5]} 35. Bxe8
{[%clk 0:00:41.4]} 35... Rxe8 {[%clk 0:01:27.3]} 36. Nxg7 {[%clk 0:00:37.9]}
36... Rxg7 {[%clk 0:01:25.3]} 37. Nf5 {[%clk 0:00:36]} 37... Rg6 {[%clk
0:01:16]} 38. Nxd6 {[%clk 0:00:22.9]} 38... Ra8 {[%clk 0:01:14.3]} 39. Qf5
{[%clk 0:00:22.3]} 39... Rg7 {[%clk 0:01:10.8]} 40. Qe6+ {[%clk 0:00:20.1]}
40... Kh8 {[%clk 0:01:10.5]} 41. Qxf6 {[%clk 0:00:17.4]} 41... a2 {[%clk
0:01:06.1]} 42. Nf5 {[%clk 0:00:14.4]} 42... Qc7 {[%clk 0:00:52.2]} 43. d6
{[%clk 0:00:12.7]} 43... Qf7 {[%clk 0:00:50]} 44. Qd4 {[%clk 0:00:02.5]} 44...
Kh7 {[%clk 0:00:39.3]} 45. Ra1 {[%clk 0:00:02.4]} 45... Rg6 {[%clk 0:00:32]} 46.
h3 {[%clk 0:00:01.9]} 46... Qb3 {[%clk 0:00:26]} 47. Qe5 {[%clk 0:00:01.7]}
47... Qb1+ {[%clk 0:00:20.3]} 48. Kh2 {[%clk 0:00:01.5]} 48... Rag8 {[%clk
0:00:19.7]} 49. Qe7+ {[%clk 0:00:01.6]} 49... Kh8 {[%clk 0:00:19.1]} 50. Qh4+
{[%clk 0:00:01.4]} 50... Rh6 {[%clk 0:00:16.3]} 51. Qxh6# {[%clk 0:00:01.9]} 1-0

[Event "Early-Titled-Tuesday-Blitz-January-16-2024"]
[Site "Chess.com"]
[Date "2024.01.16"]
[Round "10"]
[White "NewYearGirl"]
[Black "Ezov"]
[Result "1-0"]
[WhiteElo "2380"]
[BlackElo "2223"]
[TimeControl "180+1"]
[EndTime "9:58:28 PST"]
[Termination "NewYearGirl won on time"]

1. e4 {[%clk 0:02:58]} 1... e6 {[%clk 0:02:57.3]} 2. d4 {[%clk 0:02:58.4]} 2...
d5 {[%clk 0:02:58.2]} 3. Nc3 {[%clk 0:02:59]} 3... Bb4 {[%clk 0:02:56.7]} 4. e5
{[%clk 0:02:59.1]} 4... c5 {[%clk 0:02:55.9]} 5. a3 {[%clk 0:02:59.4]} 5... cxd4
{[%clk 0:02:55.2]} 6. axb4 {[%clk 0:02:54.3]} 6... dxc3 {[%clk 0:02:54.4]} 7.
bxc3 {[%clk 0:02:55.2]} 7... Qc7 {[%clk 0:02:53.5]} 8. Qd4 {[%clk 0:02:51]} 8...
Nc6 {[%clk 0:02:52.5]} 9. Bb5 {[%clk 0:02:51.3]} 9... Ne7 {[%clk 0:02:51.5]} 10.
f4 {[%clk 0:02:47.8]} 10... Nf5 {[%clk 0:02:50.8]} 11. Qc5 {[%clk 0:02:44.7]}
11... Bd7 {[%clk 0:02:46.7]} 12. Bxc6 {[%clk 0:02:39.8]} 12... Qxc6 {[%clk
0:02:41.7]} 13. Qxc6 {[%clk 0:02:27.3]} 13... Bxc6 {[%clk 0:02:42.6]} 14. Nf3
{[%clk 0:02:26.7]} 14... a6 {[%clk 0:02:35.1]} 15. g4 {[%clk 0:02:23.7]} 15...
Ne7 {[%clk 0:02:32.5]} 16. Nd4 {[%clk 0:02:23.6]} 16... Rc8 {[%clk 0:02:28.5]}
17. f5 {[%clk 0:02:12.2]} 17... Bd7 {[%clk 0:02:23.4]} 18. fxe6 {[%clk
0:01:36.2]} 18... Bxe6 {[%clk 0:02:24.3]} 19. Nxe6 {[%clk 0:01:31.8]} 19... fxe6
{[%clk 0:02:25.2]} 20. Ra3 {[%clk 0:01:24.2]} 20... Rc4 {[%clk 0:02:19.2]} 21.
h3 {[%clk 0:01:22.4]} 21... Re4+ {[%clk 0:02:15.6]} 22. Kd1 {[%clk 0:01:05.8]}
22... Rxe5 {[%clk 0:01:50.9]} 23. b5 {[%clk 0:01:05.5]} 23... O-O {[%clk
0:01:31.2]} 24. bxa6 {[%clk 0:01:04.6]} 24... bxa6 {[%clk 0:01:30.2]} 25. Rxa6
{[%clk 0:01:05.5]} 25... Ng6 {[%clk 0:01:23.1]} 26. Re1 {[%clk 0:00:59.6]} 26...
Rxe1+ {[%clk 0:00:59.3]} 27. Kxe1 {[%clk 0:01:00.5]} 27... e5 {[%clk 0:00:58.8]}
28. Rd6 {[%clk 0:00:55.5]} 28... Rf3 {[%clk 0:00:55.5]} 29. Rxd5 {[%clk
0:00:47.1]} 29... Rxc3 {[%clk 0:00:53.9]} 30. Bb2 {[%clk 0:00:37.1]} 30... Rxh3
{[%clk 0:00:51.4]} 31. c4 {[%clk 0:00:35.1]} 31... Rb3 {[%clk 0:00:44.6]} 32.
Rd2 {[%clk 0:00:24.1]} 32... Kf7 {[%clk 0:00:37.2]} 33. c5 {[%clk 0:00:24.3]}
33... Ke6 {[%clk 0:00:36.2]} 34. c6 {[%clk 0:00:14.5]} 34... Ne7 {[%clk
0:00:34.9]} 35. c7 {[%clk 0:00:13.2]} 35... Rb7 {[%clk 0:00:21.7]} 36. Rc2
{[%clk 0:00:13.5]} 36... Nc8 {[%clk 0:00:17.2]} 37. Ke2 {[%clk 0:00:14.1]} 37...
g6 {[%clk 0:00:13.9]} 38. Ke3 {[%clk 0:00:14.5]} 38... Kd7 {[%clk 0:00:13.1]}
39. Bxe5 {[%clk 0:00:14.1]} 39... Rb3+ {[%clk 0:00:10.3]} 40. Kf4 {[%clk
0:00:14.2]} 40... Rb4+ {[%clk 0:00:09.5]} 41. Kg5 {[%clk 0:00:14.8]} 41... Rb5
{[%clk 0:00:09.7]} 42. Kf6 {[%clk 0:00:15.1]} 42... Rb6+ {[%clk 0:00:09]} 43.
Kg7 {[%clk 0:00:14.7]} 43... Rb5 {[%clk 0:00:08.8]} 44. Bf6 {[%clk 0:00:14.7]}
44... Rb6 {[%clk 0:00:08.2]} 45. g5 {[%clk 0:00:15]} 45... Nd6 {[%clk
0:00:06.8]} 46. Kxh7 {[%clk 0:00:14.3]} 46... Ne8 {[%clk 0:00:06.5]} 47. c8=Q+
{[%clk 0:00:12]} 1-0

[Event "Early-Titled-Tuesday-Blitz-January-16-2024"]
[Site "Chess.com"]
[Date "2024.01.16"]
[Round "10"]
[White "VeraVujovic"]
[Black "Chessbard1972"]
[Result "0-1"]
[WhiteElo "2233"]
[BlackElo "2388"]
[TimeControl "180+1"]
[EndTime "9:58:30 PST"]
[Termination "Chessbard1972 won by resignation"]

1. e4 {[%clk 0:03:00.9]} 1... c5 {[%clk 0:02:50.8]} 2. Nf3 {[%clk 0:03:00.7]}
2... a6 {[%clk 0:02:50.3]} 3. c3 {[%clk 0:02:57.7]} 3... d5 {[%clk 0:02:49.9]}
4. exd5 {[%clk 0:02:57.4]} 4... Qxd5 {[%clk 0:02:50.8]} 5. d4 {[%clk 0:02:57.6]}
5... Nf6 {[%clk 0:02:51.7]} 6. Na3 {[%clk 0:02:46.2]} 6... cxd4 {[%clk
0:02:50.6]} 7. Qxd4 {[%clk 0:02:45.4]} 7... Nc6 {[%clk 0:02:48.7]} 8. Qxd5
{[%clk 0:02:42.6]} 8... Nxd5 {[%clk 0:02:48.4]} 9. Bc4 {[%clk 0:02:43.2]} 9...
Nf6 {[%clk 0:02:43.4]} 10. O-O {[%clk 0:02:40.8]} 10... Bf5 {[%clk 0:02:40]} 11.
Bf4 {[%clk 0:02:39.2]} 11... e6 {[%clk 0:02:39.6]} 12. b4 {[%clk 0:02:32.7]}
12... Be7 {[%clk 0:02:33.7]} 13. Bb3 {[%clk 0:02:31.3]} 13... O-O {[%clk
0:02:30.5]} 14. Nc4 {[%clk 0:02:30.6]} 14... h6 {[%clk 0:02:25.1]} 15. a4 {[%clk
0:02:12]} 15... Nd5 {[%clk 0:02:23.3]} 16. Bd2 {[%clk 0:02:06.5]} 16... b5
{[%clk 0:02:13.4]} 17. Nce5 {[%clk 0:01:42.4]} 17... Nxe5 {[%clk 0:02:10.9]} 18.
Nxe5 {[%clk 0:01:41.1]} 18... Rac8 {[%clk 0:01:58.1]} 19. axb5 {[%clk
0:01:38.4]} 19... axb5 {[%clk 0:01:57.7]} 20. Bxd5 {[%clk 0:01:22.9]} 20... exd5
{[%clk 0:01:57.3]} 21. Rfe1 {[%clk 0:01:17]} 21... Bf6 {[%clk 0:01:56.1]} 22.
Ra5 {[%clk 0:01:12.3]} 22... Rfe8 {[%clk 0:01:51.9]} 23. f4 {[%clk 0:01:09.6]}
23... Rb8 {[%clk 0:01:42.7]} 24. g4 {[%clk 0:00:47.7]} 24... Be4 {[%clk
0:01:40.5]} 25. Nc6 {[%clk 0:00:43.1]} 25... Ra8 {[%clk 0:01:37.7]} 26. Rxb5
{[%clk 0:00:37.4]} 26... Ra2 {[%clk 0:01:35.6]} 27. Re2 {[%clk 0:00:35.4]} 27...
Rc8 {[%clk 0:01:30.5]} 28. Rc5 {[%clk 0:00:25.5]} 28... Rca8 {[%clk 0:01:12.3]}
29. g5 {[%clk 0:00:25.8]} 29... hxg5 {[%clk 0:01:09.1]} 30. fxg5 {[%clk
0:00:25.9]} 30... Bxg5 {[%clk 0:00:57.3]} 31. Rxe4 {[%clk 0:00:20.2]} 31... Rxd2
{[%clk 0:00:51.5]} 32. Re1 {[%clk 0:00:16.6]} 32... Be3+ {[%clk 0:00:50.2]} 33.
Kf1 {[%clk 0:00:16.3]} 33... Bxc5 {[%clk 0:00:50]} 34. bxc5 {[%clk 0:00:16.1]}
34... Rxh2 {[%clk 0:00:48.8]} 35. Ne7+ {[%clk 0:00:16.2]} 35... Kf8 {[%clk
0:00:46.3]} 36. Nxd5 {[%clk 0:00:16.2]} 36... Rh1+ {[%clk 0:00:44.9]} 37. Ke2
{[%clk 0:00:15.9]} 37... Rxe1+ {[%clk 0:00:45.1]} 38. Kxe1 {[%clk 0:00:16.8]}
38... Rc8 {[%clk 0:00:43.4]} 39. Nb6 {[%clk 0:00:17.2]} 39... Rc7 {[%clk
0:00:41.9]} 40. Kd2 {[%clk 0:00:17]} 40... Ke8 {[%clk 0:00:40.6]} 41. Na4 {[%clk
0:00:15.4]} 41... Kd7 {[%clk 0:00:39.9]} 42. Kd3 {[%clk 0:00:15.5]} 42... Kc6
{[%clk 0:00:39.4]} 43. Kc4 {[%clk 0:00:15.7]} 43... Ra7 {[%clk 0:00:38.6]} 44.
Nb6 {[%clk 0:00:15.6]} 44... Ra5 {[%clk 0:00:34.4]} 45. Nc8 {[%clk 0:00:14.3]}
45... Rxc5+ {[%clk 0:00:33.4]} 46. Kd4 {[%clk 0:00:14.5]} 46... Rd5+ {[%clk
0:00:32.3]} 47. Ke4 {[%clk 0:00:14.9]} 47... Rd7 {[%clk 0:00:28.6]} 48. Ke5
{[%clk 0:00:14.4]} 48... Kb7 {[%clk 0:00:26.7]} 49. Nd6+ {[%clk 0:00:14.6]}
49... Rxd6 {[%clk 0:00:25.4]} 50. Kxd6 {[%clk 0:00:15]} 50... Kc8 {[%clk
0:00:24.2]} 51. c4 {[%clk 0:00:14]} 51... f5 {[%clk 0:00:22.4]} 52. Ke5 {[%clk
0:00:14]} 52... g6 {[%clk 0:00:22.5]} 53. Kf4 {[%clk 0:00:13.8]} 53... Kc7
{[%clk 0:00:22.8]} 54. Ke5 {[%clk 0:00:13.7]} 54... Kc6 {[%clk 0:00:23.2]} 55.
Kd4 {[%clk 0:00:13.9]} 55... f4 {[%clk 0:00:22.3]} 56. Ke4 {[%clk 0:00:14.2]}
56... g5 {[%clk 0:00:22.9]} 57. Kd4 {[%clk 0:00:14.4]} 57... f3 {[%clk
0:00:23.1]} 58. Ke3 {[%clk 0:00:15.1]} 58... g4 {[%clk 0:00:23.5]} 59. Kf2
{[%clk 0:00:16]} 59... Kc5 {[%clk 0:00:23.4]} 60. Kg3 {[%clk 0:00:16.9]} 60...
Kxc4 {[%clk 0:00:22.9]} 61. Kf2 {[%clk 0:00:17.7]} 61... Kd3 {[%clk 0:00:23.1]}
62. Kg3 {[%clk 0:00:18]} 62... Ke2 {[%clk 0:00:23.5]} 63. Kh2 {[%clk 0:00:18.2]}
63... g3+ {[%clk 0:00:22.3]} 64. Kxg3 {[%clk 0:00:17.3]} 64... f2 {[%clk
0:00:22.4]} 0-1

[Event "Early-Titled-Tuesday-Blitz-January-16-2024"]
[Site "Chess.com"]
[Date "2024.01.16"]
[Round "10"]
[White "PepeCuenca"]
[Black "hakanazeri2"]
[Result "0-1"]
[WhiteElo "2692"]
[BlackElo "2572"]
[TimeControl "180+1"]
[EndTime "9:58:40 PST"]
[Termination "hakanazeri2 won by checkmate"]

1. d4 {[%clk 0:03:00.9]} 1... d5 {[%clk 0:02:58]} 2. Bf4 {[%clk 0:03:01.4]} 2...
Nf6 {[%clk 0:02:57.6]} 3. e3 {[%clk 0:03:01.7]} 3... c5 {[%clk 0:02:57.9]} 4.
dxc5 {[%clk 0:03:02.6]} 4... Nc6 {[%clk 0:02:57.8]} 5. Bb5 {[%clk 0:03:02.2]}
5... Bd7 {[%clk 0:02:52.7]} 6. c3 {[%clk 0:02:33.3]} 6... a5 {[%clk 0:02:33.6]}
7. b4 {[%clk 0:02:08.7]} 7... e6 {[%clk 0:02:11.4]} 8. Qb3 {[%clk 0:02:06.3]}
8... Ne4 {[%clk 0:01:59.3]} 9. Ne2 {[%clk 0:02:03.3]} 9... g5 {[%clk 0:01:51.6]}
10. Bg3 {[%clk 0:01:49]} 10... axb4 {[%clk 0:01:49.3]} 11. cxb4 {[%clk
0:01:49.1]} 11... Bg7 {[%clk 0:01:47.9]} 12. Nbc3 {[%clk 0:01:44.7]} 12... Nxc3
{[%clk 0:01:30.4]} 13. Nxc3 {[%clk 0:01:44.4]} 13... O-O {[%clk 0:01:30.4]} 14.
Rd1 {[%clk 0:01:15.9]} 14... Bxc3+ {[%clk 0:01:15]} 15. Qxc3 {[%clk 0:01:15.5]}
15... Rxa2 {[%clk 0:01:14]} 16. O-O {[%clk 0:01:10.6]} 16... Nd4 {[%clk
0:01:09.4]} 17. Bd3 {[%clk 0:00:52.8]} 17... Ne2+ {[%clk 0:00:56.6]} 18. Bxe2
{[%clk 0:00:52.9]} 18... Rxe2 {[%clk 0:00:57.5]} 19. Bd6 {[%clk 0:00:53.3]}
19... Re8 {[%clk 0:00:56.8]} 20. Be5 {[%clk 0:00:53.6]} 20... f5 {[%clk
0:00:34.5]} 21. Bf6 {[%clk 0:00:49.7]} 21... Qc7 {[%clk 0:00:32.8]} 22. Bxg5
{[%clk 0:00:48.4]} 22... Bb5 {[%clk 0:00:26.4]} 23. Rfe1 {[%clk 0:00:32.9]}
23... Ra8 {[%clk 0:00:16.3]} 24. Bf4 {[%clk 0:00:26.5]} 24... Qg7 {[%clk
0:00:13.9]} 25. Be5 {[%clk 0:00:25.7]} 25... Qg4 {[%clk 0:00:10]} 26. Rxe2
{[%clk 0:00:22.7]} 26... Qxe2 {[%clk 0:00:09.8]} 27. Re1 {[%clk 0:00:23.2]}
27... Qc4 {[%clk 0:00:09.4]} 28. h3 {[%clk 0:00:15.4]} 28... Ra4 {[%clk
0:00:07.1]} 29. Rb1 {[%clk 0:00:09.6]} 29... Qe4 {[%clk 0:00:07.1]} 30. Bg3
{[%clk 0:00:07.6]} 30... Qxb1+ {[%clk 0:00:06.9]} 31. Kh2 {[%clk 0:00:07.3]}
31... Ra1 {[%clk 0:00:07.2]} 32. Bf4 {[%clk 0:00:04.9]} 32... Qg1+ {[%clk
0:00:04.7]} 33. Kg3 {[%clk 0:00:05]} 33... Bf1 {[%clk 0:00:05.2]} 34. Qf6 {[%clk
0:00:03.6]} 34... Qxg2+ {[%clk 0:00:05.4]} 35. Kh4 {[%clk 0:00:04.1]} 35...
Qxh3+ {[%clk 0:00:06]} 36. Kg5 {[%clk 0:00:04.6]} 36... Qg4+ {[%clk 0:00:06.5]}
37. Kh6 {[%clk 0:00:05.1]} 37... Qg6+ {[%clk 0:00:06.5]} 38. Qxg6+ {[%clk
0:00:05.7]} 38... hxg6 {[%clk 0:00:07.4]} 39. Kxg6 {[%clk 0:00:06.2]} 39... Bc4
{[%clk 0:00:07.6]} 40. Kf6 {[%clk 0:00:06.2]} 40... Ra6 {[%clk 0:00:08]} 41. Bd6
{[%clk 0:00:05]} 41... Ra4 {[%clk 0:00:07.7]} 42. f4 {[%clk 0:00:01.2]} 42...
Rxb4 {[%clk 0:00:06.6]} 43. Ke5 {[%clk 0:00:01.7]} 43... Rb3 {[%clk 0:00:05.7]}
44. Kxe6 {[%clk 0:00:01.6]} 44... d4+ {[%clk 0:00:05.8]} 45. Kxf5 {[%clk
0:00:02.1]} 45... d3 {[%clk 0:00:06.5]} 46. Kg4 {[%clk 0:00:01.1]} 46... d2
{[%clk 0:00:05.8]} 47. Kg5 {[%clk 0:00:01.2]} 47... d1=Q {[%clk 0:00:06.7]} 48.
Kf6 {[%clk 0:00:01.6]} 48... Qd5 {[%clk 0:00:07.1]} 49. Ke7 {[%clk 0:00:02.5]}
49... Qe6+ {[%clk 0:00:07.6]} 50. Kd8 {[%clk 0:00:03.4]} 50... Ra3 {[%clk
0:00:08.3]} 51. Kc7 {[%clk 0:00:04.3]} 51... Ra8 {[%clk 0:00:08.7]} 52. Kb6
{[%clk 0:00:05.2]} 52... Qd7 {[%clk 0:00:08.8]} 53. c6 {[%clk 0:00:06.1]} 53...
Qxc6# {[%clk 0:00:09.2]} 0-1

[Event "Early-Titled-Tuesday-Blitz-January-16-2024"]
[Site "Chess.com"]
[Date "2024.01.16"]
[Round "10"]
[White "LeoWin2012"]
[Black "Roedor"]
[Result "1-0"]
[WhiteElo "2254"]
[BlackElo "2374"]
[TimeControl "180+1"]
[EndTime "9:58:41 PST"]
[Termination "LeoWin2012 won on time"]

1. e4 {[%clk 0:02:58]} 1... e5 {[%clk 0:02:54.9]} 2. Nf3 {[%clk 0:02:57.4]} 2...
Nc6 {[%clk 0:02:54.9]} 3. d4 {[%clk 0:02:57.8]} 3... exd4 {[%clk 0:02:55.8]} 4.
Nxd4 {[%clk 0:02:58.2]} 4... Nf6 {[%clk 0:02:56.4]} 5. Nc3 {[%clk 0:02:57.4]}
5... Bb4 {[%clk 0:02:56.1]} 6. Nxc6 {[%clk 0:02:57]} 6... bxc6 {[%clk 0:02:57]}
7. Bd3 {[%clk 0:02:57]} 7... O-O {[%clk 0:02:54.5]} 8. O-O {[%clk 0:02:55.5]}
8... d5 {[%clk 0:02:54.7]} 9. exd5 {[%clk 0:02:56.4]} 9... cxd5 {[%clk
0:02:55.6]} 10. Bg5 {[%clk 0:02:55.8]} 10... c6 {[%clk 0:02:55.3]} 11. Qf3
{[%clk 0:02:52.4]} 11... h6 {[%clk 0:02:55.6]} 12. Bxf6 {[%clk 0:02:50.7]} 12...
Qxf6 {[%clk 0:02:56.5]} 13. Qxf6 {[%clk 0:02:50.9]} 13... gxf6 {[%clk
0:02:57.4]} 14. Ne2 {[%clk 0:02:50.8]} 14... Bd6 {[%clk 0:02:55.6]} 15. Nd4
{[%clk 0:02:50.7]} 15... Bd7 {[%clk 0:02:54.7]} 16. Nf5 {[%clk 0:02:50.5]} 16...
Bxf5 {[%clk 0:02:53.8]} 17. Bxf5 {[%clk 0:02:51.4]} 17... Rab8 {[%clk 0:02:54]}
18. b3 {[%clk 0:02:51.4]} 18... Rfe8 {[%clk 0:02:53.3]} 19. Rfe1 {[%clk
0:02:51.2]} 19... Re5 {[%clk 0:02:53.6]} 20. Bd3 {[%clk 0:02:50.7]} 20... Kg7
{[%clk 0:02:47.9]} 21. Kf1 {[%clk 0:02:47.3]} 21... f5 {[%clk 0:02:46.8]} 22. c4
{[%clk 0:02:46.4]} 22... Kf6 {[%clk 0:02:43]} 23. Rad1 {[%clk 0:02:43.9]} 23...
Bb4 {[%clk 0:02:39.7]} 24. Rxe5 {[%clk 0:02:42.8]} 24... Kxe5 {[%clk 0:02:40.6]}
25. cxd5 {[%clk 0:02:43.3]} 25... cxd5 {[%clk 0:02:40.5]} 26. Ke2 {[%clk
0:02:23.6]} 26... Rc8 {[%clk 0:02:39.4]} 27. g3 {[%clk 0:02:07.7]} 27... f4
{[%clk 0:02:35.5]} 28. Kf3 {[%clk 0:01:48.7]} 28... fxg3 {[%clk 0:02:32]} 29.
fxg3 {[%clk 0:01:49.6]} 29... Rc3 {[%clk 0:02:29.2]} 30. Kg4 {[%clk 0:01:48.2]}
30... d4 {[%clk 0:01:54.9]} 31. Kh5 {[%clk 0:01:47.3]} 31... Rc6 {[%clk
0:01:50.1]} 32. Bc4 {[%clk 0:01:44.6]} 32... Rf6 {[%clk 0:01:44.5]} 33. a4
{[%clk 0:01:03.5]} 33... a5 {[%clk 0:01:43.6]} 34. Rd3 {[%clk 0:01:02.7]} 34...
Bc3 {[%clk 0:01:43.6]} 35. g4 {[%clk 0:01:01.6]} 35... Ke4 {[%clk 0:01:29.6]}
36. h4 {[%clk 0:00:41.5]} 36... Rc6 {[%clk 0:01:23.1]} 37. Rd1 {[%clk
0:00:30.3]} 37... Rf6 {[%clk 0:00:53.1]} 38. g5 {[%clk 0:00:17.6]} 38... hxg5
{[%clk 0:00:54]} 39. hxg5 {[%clk 0:00:18]} 39... Rf2 {[%clk 0:00:51.6]} 40. Rd3
{[%clk 0:00:10.3]} 40... Kf4 {[%clk 0:00:50.6]} 41. Rh3 {[%clk 0:00:05.5]} 41...
Ke5 {[%clk 0:00:24.6]} 42. g6 {[%clk 0:00:03.4]} 42... Rf5+ {[%clk 0:00:19]} 43.
Kh6 {[%clk 0:00:03.2]} 43... fxg6 {[%clk 0:00:17.3]} 44. Kxg6 {[%clk 0:00:04.1]}
44... Rf2 {[%clk 0:00:12.2]} 45. Rd3 {[%clk 0:00:01.4]} 45... Ke4 {[%clk
0:00:12.2]} 46. Kg5 {[%clk 0:00:01.3]} 46... Rg2+ {[%clk 0:00:07.4]} 47. Kh4
{[%clk 0:00:01.2]} 47... Rg7 {[%clk 0:00:06.3]} 48. Kh3 {[%clk 0:00:01.9]} 48...
Rc7 {[%clk 0:00:05.2]} 49. Rd1 {[%clk 0:00:01.7]} 49... Ke3 {[%clk 0:00:05.5]}
50. Kg2 {[%clk 0:00:02]} 50... Bb4 {[%clk 0:00:01.5]} 51. Rd3+ {[%clk 0:00:02]}
51... Ke4 {[%clk 0:00:01.6]} 52. Rd1 {[%clk 0:00:02.1]} 52... Rg7+ {[%clk
0:00:01.3]} 53. Kf2 {[%clk 0:00:02.3]} 1-0